[Event "*** Titled Tuesday 3|2 Blitz"]
[Site "Chess.com"]
[Date "2015.11.03"]
[Round "5"]
[White "Krutoy123"]
[Black "igorkovalenko"]
[Result "0-1"]
[WhiteElo "2296"]
[BlackElo "2519"]
[TimeControl "180+2"]
[EndTime "12:00:29 PST"]
[Termination "igorkovalenko won by resignation"]

1. e4 {[%clk 0:02:56.5]} 1... e6 {[%clk 0:03:01.8]} 2. Ke2 {[%clk 0:02:57.6]}
2... d5 {[%clk 0:03:03.7]} 3. exd5 {[%clk 0:02:55.4]} 3... exd5 {[%clk
0:03:05.6]} 4. d3 {[%clk 0:02:50.8]} 4... Nf6 {[%clk 0:03:06.5]} 5. Nf3 {[%clk
0:02:50.1]} 5... Bc5 {[%clk 0:03:07.5]} 6. Kd2 {[%clk 0:02:52]} 6... O-O {[%clk
0:03:07.9]} 7. d4 {[%clk 0:02:52.8]} 7... Ne4+ {[%clk 0:03:07]} 8. Ke1 {[%clk
0:02:53.7]} 8... Bd6 {[%clk 0:03:04.6]} 9. Bd3 {[%clk 0:02:51]} 9... Nc6 {[%clk
0:03:05.7]} 10. c3 {[%clk 0:02:49]} 10... Qf6 {[%clk 0:03:03.1]} 11. Nbd2 {[%clk
0:02:42.5]} 11... Bf5 {[%clk 0:03:03.2]} 12. Nf1 {[%clk 0:02:41.7]} 12... Rae8
{[%clk 0:02:58.8]} 13. Ne3 {[%clk 0:02:39.6]} 13... Bg6 {[%clk 0:02:59.9]} 14.
Kf1 {[%clk 0:02:34]} 14... Ne7 {[%clk 0:02:58.8]} 15. Kg1 {[%clk 0:02:14.9]}
15... c6 {[%clk 0:03:00]} 16. h3 {[%clk 0:02:13.6]} 16... h5 {[%clk 0:02:59.8]}
17. Nf1 {[%clk 0:02:10.2]} 17... Nf5 {[%clk 0:02:58.9]} 18. Bxe4 {[%clk
0:02:01.1]} 18... Rxe4 {[%clk 0:02:53.6]} 19. Bg5 {[%clk 0:02:00.7]} 19... Qe6
{[%clk 0:02:53.4]} 20. N1d2 {[%clk 0:01:59.6]} 20... f6 {[%clk 0:02:42.3]} 21.
Nxe4 {[%clk 0:01:55.4]} 21... dxe4 {[%clk 0:02:44.2]} 22. Qe2 {[%clk 0:01:55.4]}
22... Re8 {[%clk 0:02:33.3]} 23. Re1 {[%clk 0:01:50.1]} 23... fxg5 {[%clk
0:02:14.6]} 24. Nxg5 {[%clk 0:01:50]} 24... Qxa2 {[%clk 0:02:15.6]} 25. Nxe4
{[%clk 0:01:45.1]} 25... Nxd4 {[%clk 0:01:58.9]} 26. Qd3 {[%clk 0:01:37.2]}
26... Rxe4 {[%clk 0:01:53.8]} 27. Rxe4 {[%clk 0:01:38.1]} 27... Bxe4 {[%clk
0:01:55.5]} 28. Qd1 {[%clk 0:01:32.1]} 28... Nf5 {[%clk 0:01:44.7]} 29. h4
{[%clk 0:01:29.3]} 29... Qd5 {[%clk 0:01:42.4]} 30. Qf1 {[%clk 0:01:28.5]} 30...
b5 {[%clk 0:01:34]} 31. Rh3 {[%clk 0:01:28.5]} 31... a5 {[%clk 0:01:34.6]} 32.
Qe2 {[%clk 0:01:13.3]} 32... Bxg2 {[%clk 0:01:12.9]} 33. Rd3 {[%clk 0:01:14.2]}
33... Qe4 {[%clk 0:01:13.9]} 34. Qd1 {[%clk 0:01:14.1]} 34... g6 {[%clk
0:00:59.3]} 35. f3 {[%clk 0:01:00.3]} 35... Qxh4 {[%clk 0:00:51.6]} 36. Kxg2
{[%clk 0:00:55.7]} 36... Qh2+ {[%clk 0:00:50.8]} 37. Kf1 {[%clk 0:00:56.2]}
37... Ng3+ {[%clk 0:00:51.7]} 38. Ke1 {[%clk 0:00:57.4]} 38... Qg1+ {[%clk
0:00:52.9]} 39. Kd2 {[%clk 0:00:58.9]} 39... Bf4+ {[%clk 0:00:54.1]} 40. Kc2
{[%clk 0:00:57.9]} 40... Qxd1+ {[%clk 0:00:55.7]} 41. Kxd1 {[%clk 0:00:53]}
41... h4 {[%clk 0:00:57.1]} 42. Rd8+ {[%clk 0:00:52.3]} 42... Kg7 {[%clk
0:00:58.2]} 43. Rd7+ {[%clk 0:00:52.7]} 43... Kf6 {[%clk 0:00:59.5]} 44. Rh7
{[%clk 0:00:46.7]} 44... g5 {[%clk 0:01:00.8]} 45. Ke1 {[%clk 0:00:47.5]} 45...
Kg6 {[%clk 0:01:01.9]} 46. Rh8 {[%clk 0:00:46.1]} 46... a4 {[%clk 0:01:03]} 47.
Kf2 {[%clk 0:00:45.8]} 47... Nf5 {[%clk 0:01:02.4]} 48. Rc8 {[%clk 0:00:43.4]}
48... Ne7 {[%clk 0:01:03.6]} 49. Re8 {[%clk 0:00:44.1]} 49... Kf7 {[%clk
0:01:04.7]} 50. Ra8 {[%clk 0:00:43.8]} 50... Bc1 {[%clk 0:01:05.5]} 51. c4
{[%clk 0:00:44.6]} 51... Bxb2 {[%clk 0:01:05.7]} 52. cxb5 {[%clk 0:00:43.7]}
52... cxb5 {[%clk 0:01:07.6]} 53. Ra5 {[%clk 0:00:44.9]} 53... a3 {[%clk
0:01:07.9]} 54. Kg2 {[%clk 0:00:45.8]} 54... b4 {[%clk 0:01:08.2]} 55. Kh3
{[%clk 0:00:47.3]} 55... b3 {[%clk 0:01:08.1]} 56. Kg4 {[%clk 0:00:48.8]} 56...
a2 {[%clk 0:01:09.6]} 57. Kxg5 {[%clk 0:00:50.3]} 57... a1=Q {[%clk 0:01:09.8]}
0-1

[Event "*** Titled Tuesday 3|2 Blitz"]
[Site "Chess.com"]
[Date "2015.11.03"]
[Round "5"]
[White "dretch"]
[Black "cassoulet"]
[Result "1-0"]
[WhiteElo "2467"]
[BlackElo "2243"]
[TimeControl "180+2"]
[EndTime "12:00:35 PST"]
[Termination "dretch won by checkmate"]

1. d4 {[%clk 0:03:01.9]} 1... d5 {[%clk 0:03:00.5]} 2. c4 {[%clk 0:03:03.1]}
2... e5 {[%clk 0:03:01.3]} 3. dxe5 {[%clk 0:02:56]} 3... d4 {[%clk 0:03:02.3]}
4. Nf3 {[%clk 0:02:57.5]} 4... Nc6 {[%clk 0:03:02.8]} 5. Nbd2 {[%clk 0:02:57.5]}
5... Bg4 {[%clk 0:03:03.3]} 6. h3 {[%clk 0:02:56.6]} 6... Bh5 {[%clk 0:03:03.7]}
7. Qa4 {[%clk 0:02:57.2]} 7... Ne7 {[%clk 0:03:02.5]} 8. g4 {[%clk 0:02:57.3]}
8... Bg6 {[%clk 0:03:03.1]} 9. Bg2 {[%clk 0:02:59.1]} 9... h5 {[%clk 0:03:03.7]}
10. Nh4 {[%clk 0:02:47.2]} 10... Qd7 {[%clk 0:03:01.2]} 11. Nb3 {[%clk 0:02:35]}
11... Nxe5 {[%clk 0:02:38.7]} 12. Qxd7+ {[%clk 0:02:34.7]} 12... Nxd7 {[%clk
0:02:40.1]} 13. Bxb7 {[%clk 0:02:35.7]} 13... Rb8 {[%clk 0:02:40]} 14. Nxg6
{[%clk 0:02:36.5]} 14... Nxg6 {[%clk 0:02:35.1]} 15. Be4 {[%clk 0:02:35.4]}
15... hxg4 {[%clk 0:02:31.1]} 16. hxg4 {[%clk 0:02:36.9]} 16... Rxh1+ {[%clk
0:02:32]} 17. Bxh1 {[%clk 0:02:38.8]} 17... Bb4+ {[%clk 0:02:27.5]} 18. Kd1
{[%clk 0:02:37.3]} 18... c5 {[%clk 0:02:27.4]} 19. a3 {[%clk 0:02:37.5]} 19...
Bc3 {[%clk 0:02:18.9]} 20. Kc2 {[%clk 0:02:34.5]} 20... Be1 {[%clk 0:02:18.4]}
21. f4 {[%clk 0:02:35.8]} 21... Bg3 {[%clk 0:02:15.1]} 22. Bc6 {[%clk
0:02:36.6]} 22... Rc8 {[%clk 0:02:10.3]} 23. Bxd7+ {[%clk 0:02:31.4]} 23... Kxd7
{[%clk 0:02:12.2]} 24. e3 {[%clk 0:02:32.9]} 24... Bf2 {[%clk 0:01:52.4]} 25.
Kd3 {[%clk 0:02:26.9]} 25... dxe3 {[%clk 0:01:36.5]} 26. Bxe3 {[%clk 0:02:27.1]}
26... Bxe3 {[%clk 0:01:37.1]} 27. Kxe3 {[%clk 0:02:28.3]} 27... Kc6 {[%clk
0:01:39]} 28. Rd1 {[%clk 0:02:27.5]} 28... Rh8 {[%clk 0:01:32.6]} 29. Ke4 {[%clk
0:02:18.9]} 29... Rh2 {[%clk 0:01:24.3]} 30. Rd2 {[%clk 0:02:17.6]} 30... Rh3
{[%clk 0:01:19.9]} 31. Rd3 {[%clk 0:02:17.4]} 31... Rxd3 {[%clk 0:01:19.1]} 32.
Kxd3 {[%clk 0:02:19]} 32... Nxf4+ {[%clk 0:01:20.2]} 33. Ke4 {[%clk 0:02:19.8]}
33... Ne6 {[%clk 0:01:20.7]} 34. Ke5 {[%clk 0:02:21.1]} 34... Nf8 {[%clk
0:01:08.2]} 35. Na5+ {[%clk 0:02:13.1]} 35... Kb6 {[%clk 0:01:08.7]} 36. b4
{[%clk 0:02:11.4]} 36... Ne6 {[%clk 0:00:58.8]} 37. Nb3 {[%clk 0:02:05.2]} 37...
Kc6 {[%clk 0:00:45.9]} 38. b5+ {[%clk 0:02:02.9]} 38... Kb6 {[%clk 0:00:46.8]}
39. Kd6 {[%clk 0:02:02.5]} 39... g5 {[%clk 0:00:33]} 40. a4 {[%clk 0:02:02.4]}
40... Nd4 {[%clk 0:00:32.9]} 41. a5+ {[%clk 0:02:02.8]} 41... Kb7 {[%clk
0:00:31.5]} 42. Nxc5+ {[%clk 0:02:04]} 42... Kc8 {[%clk 0:00:32.8]} 43. Ne4
{[%clk 0:01:57.1]} 43... f5 {[%clk 0:00:30.9]} 44. gxf5 {[%clk 0:01:57.5]} 44...
Nxf5+ {[%clk 0:00:32.8]} 45. Ke5 {[%clk 0:01:58.8]} 45... Ne3 {[%clk 0:00:33.4]}
46. Kd4 {[%clk 0:01:58]} 46... Nf5+ {[%clk 0:00:34.5]} 47. Ke5 {[%clk
0:01:55.8]} 47... Ne3 {[%clk 0:00:35.4]} 48. Nd6+ {[%clk 0:01:52.1]} 48... Kc7
{[%clk 0:00:33.7]} 49. Ke4 {[%clk 0:01:41.3]} 49... Nd1 {[%clk 0:00:26.1]} 50.
c5 {[%clk 0:01:36.1]} 50... g4 {[%clk 0:00:23.4]} 51. a6 {[%clk 0:01:20.3]}
51... Nc3+ {[%clk 0:00:12.7]} 52. Kd3 {[%clk 0:01:04.3]} 52... g3 {[%clk
0:00:11.2]} 53. b6+ {[%clk 0:01:05.8]} 53... axb6 {[%clk 0:00:11.6]} 54. a7
{[%clk 0:01:07.2]} 54... g2 {[%clk 0:00:10.3]} 55. a8=Q {[%clk 0:01:07.1]} 55...
g1=Q {[%clk 0:00:10.5]} 56. Qc8# {[%clk 0:01:08.1]} 1-0

[Event "*** Titled Tuesday 3|2 Blitz"]
[Site "Chess.com"]
[Date "2015.11.03"]
[Round "5"]
[White "Oligan22"]
[Black "bugsbunny444"]
[Result "1-0"]
[WhiteElo "2164"]
[BlackElo "2331"]
[TimeControl "180+2"]
[EndTime "12:01:03 PST"]
[Termination "Oligan22 won by resignation"]

1. e4 {[%clk 0:02:57.1]} 1... e6 {[%clk 0:03:00.7]} 2. d4 {[%clk 0:02:54.9]}
2... d5 {[%clk 0:03:00.9]} 3. Nc3 {[%clk 0:02:54.5]} 3... Nf6 {[%clk 0:03:01.9]}
4. e5 {[%clk 0:02:55.1]} 4... Nfd7 {[%clk 0:03:02.9]} 5. f4 {[%clk 0:02:56.3]}
5... c5 {[%clk 0:03:04.6]} 6. Nf3 {[%clk 0:02:57]} 6... Nc6 {[%clk 0:03:06.3]}
7. Be3 {[%clk 0:02:58]} 7... cxd4 {[%clk 0:03:08]} 8. Nxd4 {[%clk 0:02:58.5]}
8... Bc5 {[%clk 0:03:09.7]} 9. Qd2 {[%clk 0:02:59.2]} 9... O-O {[%clk
0:03:11.4]} 10. O-O-O {[%clk 0:02:59.6]} 10... a6 {[%clk 0:03:13.1]} 11. h4
{[%clk 0:03:00.2]} 11... Nxd4 {[%clk 0:03:13.9]} 12. Bxd4 {[%clk 0:03:00.9]}
12... b5 {[%clk 0:03:15.6]} 13. h5 {[%clk 0:02:56.8]} 13... b4 {[%clk
0:03:16.9]} 14. Ne2 {[%clk 0:02:52.4]} 14... a5 {[%clk 0:03:17.5]} 15. Rh3
{[%clk 0:02:43.8]} 15... Ba6 {[%clk 0:03:15.4]} 16. Rg3 {[%clk 0:02:41.5]} 16...
Qh4 {[%clk 0:02:35.5]} 17. Rg5 {[%clk 0:02:30.6]} 17... h6 {[%clk 0:02:29.8]}
18. Rg3 {[%clk 0:02:15.4]} 18... Bxe2 {[%clk 0:02:16.1]} 19. Rh3 {[%clk
0:02:15.4]} 19... Qxh3 {[%clk 0:01:58.7]} 20. gxh3 {[%clk 0:02:13.8]} 20... Bxd1
{[%clk 0:01:59.8]} 21. Qxd1 {[%clk 0:02:14.8]} 21... Rfc8 {[%clk 0:01:38]} 22.
f5 {[%clk 0:02:06]} 22... exf5 {[%clk 0:01:14.7]} 23. Bb5 {[%clk 0:02:05.9]}
23... Nf8 {[%clk 0:01:12.8]} 24. Bxc5 {[%clk 0:01:49]} 24... Rxc5 {[%clk
0:01:13.6]} 25. Bd3 {[%clk 0:01:50.9]} 25... Re8 {[%clk 0:01:09.3]} 26. Bxf5
{[%clk 0:01:49.7]} 26... Rxe5 {[%clk 0:01:07.9]} 27. Qd4 {[%clk 0:01:50.5]}
27... Rxf5 {[%clk 0:00:25.4]} 28. Qxc5 {[%clk 0:01:51]} 28... Ne6 {[%clk
0:00:11.7]} 29. Qxa5 {[%clk 0:01:48.4]} 29... Rf4 {[%clk 0:00:06.7]} 30. Qa8+
{[%clk 0:01:48.1]} 30... Kh7 {[%clk 0:00:07.2]} 31. Qxd5 {[%clk 0:01:48.2]}
31... Rf1+ {[%clk 0:00:03.5]} 32. Kd2 {[%clk 0:01:48.5]} 32... Rf4 {[%clk
0:00:05.4]} 33. c3 {[%clk 0:01:47]} 33... bxc3+ {[%clk 0:00:06.2]} 34. bxc3
{[%clk 0:01:48.1]} 34... Ng5 {[%clk 0:00:03.6]} 35. Qd3+ {[%clk 0:01:44.8]}
35... f5 {[%clk 0:00:02.9]} 36. h4 {[%clk 0:01:37.3]} 36... Rxh4 {[%clk
0:00:04]} 37. Qxf5+ {[%clk 0:01:37.1]} 37... Kh8 {[%clk 0:00:04.5]} 38. Qc8+
{[%clk 0:01:34]} 38... Kh7 {[%clk 0:00:05.9]} 39. Qf5+ {[%clk 0:01:33.8]} 39...
Kh8 {[%clk 0:00:06.9]} 40. Qg6 {[%clk 0:01:32.1]} 40... Rf4 {[%clk 0:00:03.4]}
41. a4 {[%clk 0:01:30.1]} 41... Rf6 {[%clk 0:00:02.4]} 42. Qe8+ {[%clk
0:01:26.7]} 42... Kh7 {[%clk 0:00:03.9]} 43. a5 {[%clk 0:01:26.9]} 43... Nf7
{[%clk 0:00:03]} 44. Qe4+ {[%clk 0:01:21.4]} 44... Kg8 {[%clk 0:00:03.6]} 45.
Qa8+ {[%clk 0:01:18.6]} 45... Kh7 {[%clk 0:00:04.5]} 46. a6 {[%clk 0:01:19.8]}
46... Ne5 {[%clk 0:00:04.9]} 47. a7 {[%clk 0:01:19.7]} 47... Nc4+ {[%clk
0:00:04.7]} 48. Kd3 {[%clk 0:01:17.6]} 48... Nb6 {[%clk 0:00:04.2]} 49. Qe4+
{[%clk 0:01:17.1]} 49... Kg8 {[%clk 0:00:04.9]} 50. Qd4 {[%clk 0:01:16.3]} 50...
Kf7 {[%clk 0:00:02.9]} 51. Qxb6 {[%clk 0:01:12]} 51... Rxb6 {[%clk 0:00:04.8]}
52. a8=Q {[%clk 0:01:13.4]} 52... Rd6+ {[%clk 0:00:03.8]} 53. Kc2 {[%clk
0:01:13]} 53... Re6 {[%clk 0:00:02.7]} 54. Qd5 {[%clk 0:01:13]} 54... Kf6 {[%clk
0:00:03.9]} 55. c4 {[%clk 0:01:14.3]} 55... Re5 {[%clk 0:00:05.2]} 56. Qd4
{[%clk 0:01:14.5]} 56... Ke6 {[%clk 0:00:05.5]} 57. c5 {[%clk 0:01:15.3]} 57...
Rxh5 {[%clk 0:00:05.6]} 58. c6 {[%clk 0:01:14.7]} 58... Rd5 {[%clk 0:00:05.3]}
59. Qxd5+ {[%clk 0:01:14.7]} 1-0

[Event "*** Titled Tuesday 3|2 Blitz"]
[Site "Chess.com"]
[Date "2015.11.03"]
[Round "5"]
[White "amaidel"]
[Black "E-Shaposhnikov"]
[Result "1/2-1/2"]
[WhiteElo "2358"]
[BlackElo "2555"]
[TimeControl "180+2"]
[EndTime "12:01:06 PST"]
[Termination "Game drawn by repetition"]

1. d4 {[%clk 0:03:01.1]} 1... Nf6 {[%clk 0:02:54.9]} 2. Bg5 {[%clk 0:03:01.4]}
2... Ne4 {[%clk 0:02:55.7]} 3. Bf4 {[%clk 0:03:02.4]} 3... d5 {[%clk 0:02:57.3]}
4. Nd2 {[%clk 0:03:03.3]} 4... Bf5 {[%clk 0:02:58]} 5. e3 {[%clk 0:03:02.6]}
5... Nxd2 {[%clk 0:02:56.5]} 6. Qxd2 {[%clk 0:03:03.4]} 6... e6 {[%clk
0:02:58.1]} 7. c3 {[%clk 0:03:03.9]} 7... c5 {[%clk 0:02:57.5]} 8. Nf3 {[%clk
0:03:04.8]} 8... Nc6 {[%clk 0:02:40.7]} 9. Be2 {[%clk 0:03:03.4]} 9... Bd6
{[%clk 0:02:40]} 10. Bxd6 {[%clk 0:03:02.6]} 10... Qxd6 {[%clk 0:02:41.9]} 11.
O-O {[%clk 0:03:03.4]} 11... O-O {[%clk 0:02:42.7]} 12. h3 {[%clk 0:02:56.2]}
12... h6 {[%clk 0:02:43.2]} 13. Rfd1 {[%clk 0:02:55]} 13... c4 {[%clk
0:02:43.7]} 14. b3 {[%clk 0:02:48]} 14... b5 {[%clk 0:02:40.8]} 15. a4 {[%clk
0:02:43.7]} 15... Na5 {[%clk 0:02:41]} 16. bxc4 {[%clk 0:02:35.4]} 16... bxc4
{[%clk 0:02:39.5]} 17. Qa2 {[%clk 0:02:30]} 17... Rfb8 {[%clk 0:02:37.7]} 18.
Nd2 {[%clk 0:02:29.7]} 18... Rb6 {[%clk 0:02:18.8]} 19. e4 {[%clk 0:02:29.5]}
19... Bg6 {[%clk 0:02:16.8]} 20. Rab1 {[%clk 0:02:25.9]} 20... Rab8 {[%clk
0:02:16.5]} 21. Rxb6 {[%clk 0:02:24.6]} 21... Rxb6 {[%clk 0:02:15.6]} 22. Bf3
{[%clk 0:02:03.8]} 22... Nb3 {[%clk 0:02:10.3]} 23. exd5 {[%clk 0:02:00.6]}
23... exd5 {[%clk 0:01:52.7]} 24. Nf1 {[%clk 0:02:00.2]} 24... f6 {[%clk
0:01:20.4]} 25. Ne3 {[%clk 0:02:00.2]} 25... Bf7 {[%clk 0:01:21.2]} 26. Re1
{[%clk 0:02:00.1]} 26... g6 {[%clk 0:01:17.1]} 27. Ng4 {[%clk 0:01:37.3]} 27...
Kg7 {[%clk 0:01:15.7]} 28. Qe2 {[%clk 0:01:36.9]} 28... h5 {[%clk 0:01:09.2]}
29. Ne3 {[%clk 0:01:37.4]} 29... Qd7 {[%clk 0:01:10.5]} 30. g4 {[%clk
0:01:31.6]} 30... h4 {[%clk 0:01:06.2]} 31. Bg2 {[%clk 0:00:51.5]} 31... Re6
{[%clk 0:01:05.5]} 32. f4 {[%clk 0:00:51.4]} 32... Re8 {[%clk 0:00:59.1]} 33.
Qf2 {[%clk 0:00:47.8]} 33... Qxa4 {[%clk 0:00:56.9]} 34. Qxh4 {[%clk 0:00:46.3]}
34... Qa5 {[%clk 0:00:39.7]} 35. g5 {[%clk 0:00:40.2]} 35... f5 {[%clk
0:00:36.5]} 36. Nxf5+ {[%clk 0:00:37.1]} 36... gxf5 {[%clk 0:00:33.8]} 37. Qh6+
{[%clk 0:00:28]} 37... Kg8 {[%clk 0:00:34.5]} 38. Rxe8+ {[%clk 0:00:26.2]} 38...
Bxe8 {[%clk 0:00:33.9]} 39. g6 {[%clk 0:00:26.5]} 39... Bxg6 {[%clk 0:00:19]}
40. Qxg6+ {[%clk 0:00:27]} 40... Kh8 {[%clk 0:00:18]} 41. Qh6+ {[%clk
0:00:25.4]} 41... Kg8 {[%clk 0:00:18.9]} 42. Qg6+ {[%clk 0:00:26.6]} 42... Kh8
{[%clk 0:00:20.1]} 43. Qf6+ {[%clk 0:00:25.6]} 43... Kg8 {[%clk 0:00:20]} 44.
Qe6+ {[%clk 0:00:26.8]} 44... Kg7 {[%clk 0:00:18.3]} 45. Qe5+ {[%clk 0:00:23]}
45... Kg6 {[%clk 0:00:18.2]} 46. Qe6+ {[%clk 0:00:23.4]} 46... Kg7 {[%clk
0:00:19.4]} 47. Qe5+ {[%clk 0:00:23.9]} 47... Kg6 {[%clk 0:00:20.2]} 48. Qe6+
{[%clk 0:00:25]} 48... Kg7 {[%clk 0:00:21.4]} 49. Qe5+ {[%clk 0:00:25.7]} 49...
Kg6 {[%clk 0:00:22.4]} 50. Qe6+ {[%clk 0:00:26.8]} 50... Kg7 {[%clk 0:00:23.6]}
1/2-1/2

[Event "*** Titled Tuesday 3|2 Blitz"]
[Site "Chess.com"]
[Date "2015.11.03"]
[Round "5"]
[White "jcibarra"]
[Black "Matibar"]
[Result "1/2-1/2"]
[WhiteElo "2531"]
[BlackElo "2364"]
[TimeControl "180+2"]
[EndTime "12:01:14 PST"]
[Termination "Game drawn - insufficient material"]

1. e4 {[%clk 0:03:01.9]} 1... e5 {[%clk 0:03:00.5]} 2. Nf3 {[%clk 0:03:02.9]}
2... Nc6 {[%clk 0:03:01.6]} 3. Bb5 {[%clk 0:03:03.5]} 3... a6 {[%clk 0:03:02.6]}
4. Bxc6 {[%clk 0:03:04.3]} 4... dxc6 {[%clk 0:03:03.3]} 5. O-O {[%clk
0:03:05.8]} 5... Qf6 {[%clk 0:03:04.3]} 6. d4 {[%clk 0:03:06.1]} 6... exd4
{[%clk 0:03:05.8]} 7. Bg5 {[%clk 0:03:07]} 7... Qd6 {[%clk 0:03:06.5]} 8. Nxd4
{[%clk 0:03:08.2]} 8... Be7 {[%clk 0:03:06.5]} 9. Bxe7 {[%clk 0:03:08.9]} 9...
Nxe7 {[%clk 0:03:04.8]} 10. Nc3 {[%clk 0:03:10.3]} 10... Bd7 {[%clk 0:03:04.4]}
11. Nb3 {[%clk 0:03:10.6]} 11... O-O-O {[%clk 0:03:02]} 12. Qe2 {[%clk
0:03:11.3]} 12... Kb8 {[%clk 0:02:48.2]} 13. Rad1 {[%clk 0:03:10.9]} 13... Qg6
{[%clk 0:02:48.8]} 14. Rd3 {[%clk 0:03:03.2]} 14... Bg4 {[%clk 0:02:29.8]} 15.
Qe3 {[%clk 0:02:53.9]} 15... Rhe8 {[%clk 0:02:18.1]} 16. h3 {[%clk 0:02:49.7]}
16... Bc8 {[%clk 0:02:17.4]} 17. Rfd1 {[%clk 0:02:48.6]} 17... Rxd3 {[%clk
0:02:17.6]} 18. Rxd3 {[%clk 0:02:44.3]} 18... b6 {[%clk 0:02:12.4]} 19. Qd2
{[%clk 0:02:39.5]} 19... c5 {[%clk 0:02:06.6]} 20. Rd8 {[%clk 0:02:31.1]} 20...
f6 {[%clk 0:02:06.8]} 21. Rxe8 {[%clk 0:02:29.9]} 21... Qxe8 {[%clk 0:02:07.2]}
22. f3 {[%clk 0:02:26.3]} 22... Be6 {[%clk 0:02:05.5]} 23. Nc1 {[%clk 0:02:25]}
23... Kc8 {[%clk 0:02:01.5]} 24. N1e2 {[%clk 0:02:25.4]} 24... Qd7 {[%clk
0:01:37.7]} 25. Qxd7+ {[%clk 0:02:24.5]} 25... Kxd7 {[%clk 0:01:39.6]} 26. Kf2
{[%clk 0:02:24.2]} 26... Kd6 {[%clk 0:01:39.7]} 27. f4 {[%clk 0:02:23.3]} 27...
b5 {[%clk 0:01:39.5]} 28. a3 {[%clk 0:02:09.6]} 28... b4 {[%clk 0:01:32]} 29.
Nd1 {[%clk 0:02:07.6]} 29... a5 {[%clk 0:01:32.5]} 30. h4 {[%clk 0:02:05.6]}
30... c4 {[%clk 0:01:32.5]} 31. axb4 {[%clk 0:02:04.3]} 31... axb4 {[%clk
0:01:33]} 32. c3 {[%clk 0:02:03.9]} 32... Kc5 {[%clk 0:01:33.4]} 33. Nd4 {[%clk
0:02:02.6]} 33... Bd7 {[%clk 0:01:32.8]} 34. Ne3 {[%clk 0:02:03.5]} 34... b3
{[%clk 0:01:30.1]} 35. h5 {[%clk 0:01:59.3]} 35... h6 {[%clk 0:01:28.8]} 36. Kf3
{[%clk 0:01:55.4]} 36... Nc8 {[%clk 0:01:29.2]} 37. e5 {[%clk 0:01:49.9]} 37...
fxe5 {[%clk 0:01:28.8]} 38. fxe5 {[%clk 0:01:51.8]} 38... Nb6 {[%clk 0:01:29.5]}
39. e6 {[%clk 0:01:38.6]} 39... Be8 {[%clk 0:01:29.6]} 40. g4 {[%clk 0:01:28.7]}
40... Na4 {[%clk 0:01:30.3]} 41. Nd1 {[%clk 0:01:29.8]} 41... g6 {[%clk
0:00:57.6]} 42. hxg6 {[%clk 0:01:28.1]} 42... Bxg6 {[%clk 0:00:58.7]} 43. e7
{[%clk 0:01:09.4]} 43... Kd6 {[%clk 0:00:42.4]} 44. e8=Q {[%clk 0:00:40.1]}
44... Bxe8 {[%clk 0:00:42.6]} 45. Nf5+ {[%clk 0:00:42]} 45... Ke5 {[%clk
0:00:41.5]} 46. Nxh6 {[%clk 0:00:43.2]} 46... Bg6 {[%clk 0:00:42.3]} 47. Nf5
{[%clk 0:00:29.3]} 47... Bxf5 {[%clk 0:00:32.1]} 48. gxf5 {[%clk 0:00:31.2]}
48... Kxf5 {[%clk 0:00:34]} 49. Ne3+ {[%clk 0:00:32.4]} 49... Ke5 {[%clk
0:00:34.9]} 50. Nxc4+ {[%clk 0:00:34]} 50... Kd5 {[%clk 0:00:36]} 51. Nd2 {[%clk
0:00:32.2]} 51... Nxb2 {[%clk 0:00:36.4]} 52. Ke2 {[%clk 0:00:30.4]} 52... Na4
{[%clk 0:00:31.2]} 53. Nxb3 {[%clk 0:00:30.9]} 53... Nxc3+ {[%clk 0:00:32.4]}
54. Kd3 {[%clk 0:00:31.7]} 54... Nb5 {[%clk 0:00:33.4]} 55. Nd2 {[%clk
0:00:29.6]} 55... c5 {[%clk 0:00:33.4]} 56. Kc2 {[%clk 0:00:25.7]} 56... c4
{[%clk 0:00:32.8]} 57. Nxc4 {[%clk 0:00:26.5]} 57... Kxc4 {[%clk 0:00:34]}
1/2-1/2